bitfinex/quotes_ETHUSD_20251006
["timestamp","ask_amount","ask_price","bid_price","bid_amount"]
[1759729812151,0.1104,4526.4,4526.3,49.8618]
[1759729812653,0.1104,4526.4,4526.3,49.401]
[1759729812958,0.1104,4526.4,4526.3,24.179]
[1759729813658,0.1104,4526.4,4526.3,49.401]
[1759729815066,0.1104,4526.4,4526.3,48.372]
[1759729815275,0.5438,4526.4,4526.3,15.169]
[1759729815581,0.84127851,4526.4,4526.1,2.5]
[1759729815768,0.4334,4526.4,4526.3,2.4]
[1759729815969,0.02217556,4526.7,4526.4,10.0]
[1759729816169,0.1104,4526.4,4526.1,2.4]
[1759729816405,0.1104,4526.4,4526.3,2.4]
[1759729816601,0.4334,4526.6,4526.4,10.0]
[1759729816802,0.1104,4526.4,4526.2,2.4]
[1759729816971,0.1104,4526.4,4526.3,32.4]
[1759729817171,0.4334,4526.6,4526.4,2.4]
[1759729817384,0.1104,4526.4,4526.1,2.4]
[1759729817584,0.1104,4526.4,4526.3,2.4]
[1759729817870,0.4334,4526.6,4526.4,10.0]
[1759729818073,0.1104,4526.4,4526.1,2.4]
[1759729818271,0.1104,4526.4,4526.3,2.4]
[1759729818473,0.4334,4526.6,4526.4,12.4]
[1759729818777,0.1104,4526.4,4526.1,5.3608]
[1759729818991,0.1104,4526.4,4526.3,2.4]
[1759729819202,0.1104,4526.4,4526.3,32.4]
[1759729820015,0.1104,4526.4,4526.1,2.5]
[1759729820225,0.1104,4526.4,4526.2,30.0]
[1759729820407,0.1104,4526.4,4526.3,2.4]
[1759729820611,0.1104,4526.4,4526.2,2.4]
[1759729821100,0.02417556,4526.9,4526.5,2.4]
[1759729821305,0.002,4526.9,4526.6,40.0]
[1759729821542,0.002,4526.9,4526.6,2.4]
[1759729821695,0.002,4526.9,4526.7,10.0]
[1759729821876,0.02417556,4526.9,4526.6,30.0]
[1759729823222,2.20906857,4526.8,4526.6,30.0]
[1759729823513,0.02417556,4526.9,4526.6,30.0]
[1759729824111,0.02417556,4526.9,4526.2,2.20935416]
[1759729824112,2.64249758,4526.8,4526.3,2.4]
[1759729824303,0.4334,4526.7,4526.3,20.037]
[1759729824504,0.4334,4526.7,4526.5,2.4]
[1759729824677,0.4334,4526.7,4526.6,24.986]
[1759729824880,0.4334,4526.7,4526.6,32.4]
[1759729825179,2.23319401,4526.9,4526.6,32.4]
[1759729825383,2.23319401,4526.9,4526.6,2.4]
[1759729825590,2.66659401,4526.9,4526.6,2.4]
[1759729825792,0.45757556,4526.9,4526.6,2.4]
[1759729826004,0.4354,4526.9,4526.6,2.4]
[1759729826208,0.002,4526.9,4526.6,2.4]
[1759729826405,2.23319352,4526.9,4526.6,2.4]
[1759729826610,2.66659352,4526.9,4526.6,2.4]
[1759729827396,2.23319352,4526.9,4526.6,2.4]
[1759729827613,0.4334,4526.8,4526.6,2.4]
[1759729828037,0.45557556,4526.7,4526.6,2.4]
[1759729828213,0.4334,4526.7,4526.6,2.4]
[1759729828400,2.21102941,4526.9,4526.6,2.4]
[1759729828585,0.002,4526.9,4526.6,2.4]
[1759729828793,0.002,4526.9,4526.6,2.8608]
[1759729829088,0.02417556,4526.9,4526.6,2.4]
[1759729829326,2.2332154,4526.9,4526.6,2.4]
[1759729829717,0.02417556,4526.9,4526.6,2.4]
[1759729830632,0.002,4526.9,4526.6,2.4]
[1759729830804,0.02417556,4526.9,4526.6,2.8608]
[1759729831006,0.002,4526.9,4526.6,2.8608]
[1759729831322,0.002,4526.9,4526.6,2.42209163]
[1759729831323,0.1104,4526.7,4526.6,2.42209163]
[1759729831623,0.1104,4526.7,4526.6,32.42209163]
[1759729831925,0.1104,4526.7,4526.6,32.8608]
[1759729838253,0.1104,4526.7,4526.6,35.06996361]
[1759729839254,0.1104,4526.7,4526.6,32.8608]
[1759729841235,0.1104,4526.7,4526.6,2.8608]
[1759729841434,0.1104,4526.7,4526.6,32.88289163]
[1759729841672,0.1104,4526.7,4526.6,35.91528347]
[1759729841972,0.002,4526.9,4526.8,2.209066]
[1759729842146,0.002,4526.9,4526.8,37.108066]
[1759729842469,0.002,4526.9,4526.8,39.11878674]
[1759729843235,0.002,4526.9,4526.8,7.536166]
[1759729843435,0.002,4526.9,4526.8,38.77557302]
[1759729845158,0.002,4526.9,4526.8,53.27557302]
[1759729846376,0.002,4526.9,4526.8,23.27557302]
[1759729846738,0.002,4526.9,4526.8,53.27557302]
[1759729847341,0.002,4526.9,4526.8,23.27557302]
[1759729847741,0.002,4526.9,4526.8,53.27557302]
[1759729852086,0.002,4526.9,4526.8,52.84747302]
[1759729852287,0.002,4526.9,4526.8,17.263]
[1759729852587,0.5713,4526.9,4526.8,26.558]
[1759729852786,0.5713,4526.9,4526.8,24.653]
[1759729853175,0.5713,4526.9,4526.8,26.862066]
[1759729853570,0.5713,4526.9,4526.8,27.126066]
[1759729854592,0.5713,4526.9,4526.8,37.107066]
[1759729855097,0.5713,4526.9,4526.8,32.708]
[1759729855295,0.5713,4526.9,4526.8,13.161]
[1759729855502,0.5713,4526.9,4526.8,10.065]
[1759729856066,0.1124,4526.9,4526.8,10.065]
[1759729856480,0.1124,4526.9,4526.8,23.235]
[1759729856694,0.5713,4526.9,4526.8,23.006]
[1759729856897,0.5713,4526.9,4526.8,10.612]
[1759729857197,0.5713,4526.9,4526.8,8.676]
[1759729857604,0.5713,4526.9,4526.8,8.671]
[1759729858667,0.5713,4526.9,4526.7,12.20910352]
[1759729858867,0.1124,4526.9,4526.8,2.209066]
[1759729859068,0.1124,4526.9,4526.8,9.135066]
[1759729859296,0.1124,4526.9,4526.8,17.817066]
[1759729859664,0.5713,4526.9,4526.8,32.209066]
[1759729859897,0.1124,4526.9,4526.8,20.170066]
[1759729860103,0.5713,4526.9,4526.8,5.144066]
[1759729860607,0.5713,4526.9,4526.4,1.58262074]
[1759729860816,0.1104,4526.5,4526.0,3.79207715]
[1759729861020,0.1104,4526.2,4526.1,22.476]
[1759729861301,0.4589,4526.2,4526.1,6.405]
[1759729861500,0.5693,4526.2,4525.8,41.9905437]
[1759729861701,0.4589,4526.1,4525.9,27.424]
[1759729861890,2.23140113,4526.5,4525.8,29.659]
[1759729862089,0.1104,4525.8,4525.7,31.078]
[1759729862405,0.1104,4525.8,4525.7,33.287]
[1759729862604,0.1104,4525.8,4525.7,32.99860293]
[1759729862816,0.1104,4525.8,4525.7,34.60960293]
[1759729864526,0.1104,4525.8,4525.7,11.335]
[1759729864725,0.5642,4525.8,4525.7,11.335]
[1759729864897,0.5642,4525.8,4525.7,15.93560293]
[1759729865099,0.1104,4525.8,4525.7,15.93560293]
[1759729865837,0.1104,4525.8,4525.7,30.90260293]
[1759729866011,0.1104,4525.8,4525.7,18.00860293]
[1759729866525,0.1104,4525.8,4525.7,16.40060293]
[1759729866902,0.1104,4525.8,4525.7,16.91560293]
[1759729867304,0.1104,4525.8,4525.7,14.057]
[1759729868029,0.1104,4525.8,4525.7,17.107]
[1759729868394,0.1104,4525.8,4525.7,19.31660293]
[1759729868935,0.1104,4525.8,4525.7,34.60960293]
[1759729870206,0.1104,4525.8,4525.7,32.4]
[1759729870637,0.5642,4525.8,4525.7,2.315]
[1759729870932,0.5642,4525.8,4525.6,0.001]
[1759729871234,0.1104,4525.8,4525.6,0.001]
[1759729871742,2.68557849,4525.7,4525.6,0.001]
[1759729872038,3.18612851,4525.7,4525.6,0.001]
[1759729875200,3.81972851,4525.7,4525.6,0.001]
[1759729878740,6.31772851,4525.7,4525.6,0.001]
[1759729878939,3.16395295,4525.7,4525.6,0.001]
[1759729879138,3.13312558,4525.7,4525.6,0.001]
[1759729879438,5.34272851,4525.7,4525.6,0.001]
[1759729879606,3.11095002,4525.7,4525.6,0.001]
[1759729879942,5.34272851,4525.7,4525.6,0.001]
[1759729880119,5.32055295,4525.7,4525.6,0.001]
[1759729880511,5.77435295,4525.7,4525.6,0.001]
[1759729880712,3.56475002,4525.7,4525.6,0.001]
[1759729881142,3.58692558,4525.7,4525.6,0.001]
[1759729881347,5.79652851,4525.7,4525.6,0.001]
[1759729881673,5.77435295,4525.7,4525.6,0.001]
[1759729884531,3.11095002,4525.7,4525.6,0.001]
[1759729884738,2.6094,4525.7,4525.6,0.001]
[1759729885745,4.81900293,4525.7,4525.6,0.001]
[1759729886317,5.27280293,4525.7,4525.6,0.001]
[1759729886746,4.81900293,4525.7,4525.6,0.001]
[1759729886922,2.6114,4525.7,4525.6,0.001]
[1759729887426,0.1124,4525.7,4525.6,0.001]
[1759729887623,2.63357556,4525.7,4525.6,0.001]
[1759729888048,0.13457556,4525.7,4525.6,0.001]
[1759729888248,2.63357556,4525.7,4525.6,0.001]
[1759729888955,4.84317849,4525.7,4525.6,0.001]
[1759729889181,4.82100293,4525.7,4525.6,0.001]
[1759729890469,5.56943563,4525.7,4525.6,0.001]
[1759729895873,4.82100293,4525.7,4525.6,0.001]
[1759729898472,4.77000293,4525.7,4525.6,0.001]
[1759729905588,2.27200293,4525.7,4525.6,0.001]
[1759729905884,0.02417556,4525.7,4525.6,30.4599]
[1759729906070,0.1124,4525.7,4525.6,35.06955175]
[1759729906273,0.1124,4525.7,4525.6,37.23804356]
[1759729907369,0.1124,4525.7,4525.6,35.02839181]
[1759729907574,0.1124,4525.7,4525.6,37.23804356]
[1759729907998,0.1124,4525.7,4525.6,35.02839181]
[1759729909905,0.1124,4525.7,4525.6,21.066]
[1759729910106,0.1124,4525.7,4525.6,18.438]
[1759729910677,0.1124,4525.7,4525.6,14.389]
[1759729911410,0.1124,4525.7,4525.6,14.8479]
[1759729912094,0.1124,4525.7,4525.6,17.05755175]
[1759729912424,0.1124,4525.7,4525.6,14.8479]
[1759729917622,0.002,4525.7,4525.6,15.76990798]
[1759729917794,0.1124,4525.7,4525.6,15.76990798]
[1759729919321,0.1124,4525.7,4525.6,17.97955973]
[1759729920608,0.1124,4525.7,4525.6,15.31100798]
[1759729920812,0.573,4525.7,4525.6,15.31100798]
[1759729921012,2.80477849,4525.7,4525.6,2.401]
[1759729921219,0.573,4525.7,4525.6,2.401]
[1759729921526,2.6094,4525.7,4525.6,2.401]
[1759729923223,0.1124,4525.7,4525.6,2.401]
[1759729923422,2.34417849,4525.7,4525.6,2.401]
[1759729923629,2.80927849,4525.7,4525.6,2.401]
[1759729924327,0.59967556,4525.7,4525.6,2.401]
[1759729925427,0.13457556,4525.7,4525.6,2.401]
[1759729925613,0.1124,4525.7,4525.6,2.401]
[1759729925925,2.6094,4525.7,4525.6,2.401]
[1759729926523,3.0745,4525.7,4525.6,2.401]
[1759729926750,5.28410293,4525.7,4525.6,2.401]
[1759729927440,6.03345949,4525.7,4525.6,0.001]
[1759729928814,5.56835949,4525.7,4525.6,0.001]
[1759729929016,6.03345949,4525.7,4525.6,0.001]
[1759729929303,6.76342155,4525.7,4525.6,0.001]
[1759729939045,6.76342155,4525.7,4524.7,0.001]
[1759729939046,2.84364243,4524.8,4524.7,0.001]
[1759729939236,5.86917863,4524.8,4524.7,0.001]
[1759729939432,6.42250307,4524.8,4524.7,0.001]
[1759729939850,6.62880985,4524.8,4524.7,0.001]
[1759729941066,3.66570985,4524.8,4524.7,0.001]
[1759729941243,6.16670985,4524.8,4524.7,0.001]
[1759729941443,5.96040307,4524.8,4524.7,0.001]
[1759729942682,6.42550307,4524.8,4524.7,0.001]
[1759729946354,5.96040307,4524.8,4524.7,0.001]
[1759729946872,5.96140307,4524.8,4524.7,0.001]
[1759729948652,6.42650307,4524.8,4524.7,0.001]
[1759729948988,6.63258574,4524.8,4524.7,0.001]
[1759729953298,2.84388667,4524.3,4524.2,1e-08]
[1759729953494,5.5741449,4524.3,4524.2,1e-08]
[1759729953670,5.98306934,4524.3,4524.2,1e-08]
[1759729956710,9.17635541,4524.3,4524.2,1e-08]
[1759729957218,11.66481663,4524.3,4524.2,1e-08]
[1759729957396,12.55190326,4524.3,4524.2,1e-08]
[1759729959082,10.04990326,4524.3,4524.2,1e-08]
[1759729959282,12.55290326,4524.3,4524.2,1e-08]
[1759729960816,10.04990326,4524.3,4524.2,1e-08]
[1759729961109,12.55290326,4524.3,4524.2,1e-08]
[1759729962507,6.85661719,4524.3,4524.2,1e-08]
[1759729962815,12.55290326,4524.3,4524.2,1e-08]
[1759729963386,12.66330326,4524.3,4524.2,1e-08]
[1759729965118,9.72920326,4524.3,4524.2,1e-08]
[1759729965321,12.23220326,4524.3,4524.2,1e-08]
[1759729966785,12.66330326,4524.3,4524.2,1e-08]
[1759729967836,2.21067757,4523.5,4522.8,0.4538]
[1759729967991,5.5755358,4523.5,4523.1,0.4538]
[1759729968327,5.55336024,4523.5,4523.1,0.4538]
[1759729974219,3.05036024,4523.5,4523.4,0.4548]
[1759729974518,5.5745358,4523.5,4523.4,0.4548]
[1759729974721,5.55236024,4523.5,4523.4,0.4548]
[1759729975040,3.05036024,4523.5,4523.4,0.4548]
[1759729975200,5.36945313,4523.5,4523.4,0.4548]
[1759729975394,0.88708663,4524.3,4523.4,0.4548]
[1759729975616,2.21046503,4524.0,4523.4,0.4548]
[1759729975814,4.19066739,4523.9,4523.4,0.4548]
[1759729976018,2.503,4523.8,4523.4,0.4548]
[1759729976241,0.02217556,4523.7,4523.4,0.4548]
[1759729976546,2.503,4523.6,4523.4,0.4548]
[1759729976742,0.02217556,4523.5,4523.4,0.4548]
[1759729977754,0.13257556,4523.5,4523.4,0.4548]
[1759729978048,2.6134,4523.5,4523.4,0.4548]
[1759729980533,4.82407757,4523.5,4523.4,0.4548]
[1759729981012,2.6134,4523.5,4523.4,0.4548]
[1759729981417,4.82407757,4523.5,4523.4,0.4548]
[1759729981652,2.32107757,4523.5,4523.4,0.4548]
[1759729981815,2.32107757,4523.5,4523.4,0.001]
[1759729981816,4.82407757,4523.5,4523.4,0.001]
[1759729982012,0.1104,4523.5,4523.4,0.4548]
[1759729982213,2.63557556,4523.5,4523.4,0.4548]
[1759729982538,6.15233513,4523.5,4523.4,0.001]
[1759729982743,5.92779355,4523.5,4523.4,0.001]
[1759729983558,6.37989355,4523.5,4523.4,0.001]
[1759729990021,10.59989355,4523.5,4523.4,0.001]
[1759729994552,10.14779355,4523.5,4523.4,0.001]
[1759729994738,10.59989355,4523.5,4523.4,0.001]
[1759729996059,10.14779355,4523.5,4523.4,0.001]
[1759730001573,10.14679355,4523.5,4523.4,0.001]
[1759730002277,10.14779355,4523.5,4523.4,0.001]
[1759730002648,7.64479355,4523.5,4523.4,0.001]
[1759730002856,10.14679355,4523.5,4523.4,0.001]
[1759730003359,7.64479355,4523.5,4523.4,0.001]
[1759730003551,2.79119355,4523.5,4523.4,0.4642]
[1759730003863,4.82307757,4523.5,4523.4,0.4642]
[1759730004168,5.45667757,4523.5,4523.4,0.4642]
[1759730004367,3.246,4523.5,4523.4,0.4642]
[1759730004865,5.47885313,4523.5,4523.4,0.4642]
[1759730005062,5.45667757,4523.5,4523.4,0.4642]
[1759730007780,3.246,4523.5,4523.4,0.4642]
[1759730007959,3.26817556,4523.5,4523.4,0.4642]
[1759730010680,5.663363,4523.5,4523.4,0.4642]
[1759730014386,5.45667757,4523.5,4523.4,0.4642]
[1759730014575,5.66342958,4523.5,4523.4,0.4642]
[1759730017688,3.45275201,4523.5,4523.4,0.4642]
[1759730017892,3.47492757,4523.5,4523.4,0.4642]
[1759730018096,5.68560514,4523.5,4523.4,0.4642]
[1759730018280,3.45275201,4523.5,4523.4,0.4642]
[1759730018594,5.68560514,4523.5,4523.4,0.4642]
[1759730018808,3.45275201,4523.5,4523.4,0.4642]
[1759730018990,5.68560514,4523.5,4523.4,0.4642]
[1759730019194,5.66242958,4523.5,4523.4,0.4642]
[1759730019708,5.02882958,4523.5,4523.4,0.4501]
[1759730019905,5.02880827,4523.5,4523.4,0.4501]
[1759730020089,6.38654715,4523.5,4523.4,0.001]
[1759730020266,6.83624715,4523.5,4523.4,0.001]
[1759730037924,3.88554715,4523.5,4523.4,0.001]
[1759730038131,6.40787166,4523.5,4523.4,0.001]
[1759730038296,6.3856961,4523.5,4523.4,0.001]
[1759730038496,3.8856961,4523.5,4523.4,0.001]
[1759730038697,6.40787166,4523.5,4523.4,0.001]
[1759730038920,6.3856961,4523.5,4523.4,0.001]
[1759730040426,6.3846961,4523.5,4523.4,0.001]
[1759730043029,3.8856961,4523.5,4523.4,0.001]
[1759730043240,6.40687166,4523.5,4523.4,0.001]
[1759730043442,6.3846961,4523.5,4523.4,0.001]
[1759730044632,3.2520961,4523.5,4523.4,0.45]
[1759730044935,5.02695722,4523.5,4523.4,0.45]
[1759730045321,5.66055722,4523.5,4523.4,0.45]
[1759730048032,5.45367757,4523.5,4523.4,0.45]
[1759730048218,5.66062602,4523.5,4523.4,0.45]
[1759730049510,2.52802602,4523.5,4523.4,0.45]
[1759730049709,5.02702602,4523.5,4523.4,0.45]
[1759730052249,0.31734845,4523.5,4523.4,0.45]
[1759730052426,2.81634845,4523.5,4523.4,0.45]
[1759730053032,2.6094,4523.5,4523.4,0.45]
[1759730053529,0.1104,4523.5,4523.4,0.7802]
[1759730053727,2.6094,4523.5,4523.4,0.7802]
[1759730054544,2.6094,4523.5,4523.4,0.45]
[1759730054545,4.82007757,4523.5,4523.4,0.45]
[1759730055418,2.32107757,4523.5,4523.4,0.45]
[1759730055618,4.82007757,4523.5,4523.4,0.45]
[1759730057053,2.6094,4523.5,4523.4,0.45]
[1759730057240,4.82007757,4523.5,4523.4,0.45]
[1759730063647,4.81907757,4523.5,4523.4,0.45]
[1759730065256,2.6084,4523.5,4523.4,0.45]
[1759730065444,0.002,4523.7,4523.5,2.4]
[1759730065645,0.002,4524.2,4523.7,2.4]
[1759730065852,0.002,4524.2,4523.9,4.61047439]
[1759730066051,0.1124,4524.2,4524.1,4.61038438]
[1759730066280,0.1124,4524.2,4524.1,36.77887619]
[1759730066467,0.1124,4524.2,4524.1,37.22787619]
[1759730066670,0.002,4524.2,4524.1,37.22787619]
[1759730066977,0.002,4524.7,4524.4,2.21021418]
[1759730067175,0.002,4524.7,4524.6,4.61014012]
[1759730067344,0.002,4524.7,4524.6,34.72019635]
[1759730067550,0.002,4524.7,4524.6,35.05914012]
[1759730067745,0.002,4524.7,4524.6,35.14753996]
[1759730067965,0.002,4524.7,4524.6,35.25961516]
[1759730068150,0.002,4524.7,4524.6,37.1068768]
[1759730068551,0.002,4524.7,4524.6,36.9948016]
[1759730069848,0.002,4524.7,4524.6,37.10462518]
[1759730070044,0.002,4524.7,4524.6,51.60462518]
[1759730070249,0.002,4524.7,4524.6,48.94548506]
[1759730070559,0.002,4524.7,4524.6,49.39448506]
[1759730070754,0.002,4524.7,4524.6,51.4948016]
[1759730074690,0.002,4524.7,4524.6,49.28466148]
[1759730074994,0.002,4524.7,4524.6,51.4948016]
[1759730077282,0.002,4524.7,4524.6,23.9928016]
[1759730077469,0.002,4524.7,4524.6,53.9928016]
[1759730085099,0.002,4524.7,4524.6,53.5438016]
[1759730085805,0.002,4524.7,4524.6,53.9801016]
[1759730086504,0.002,4524.7,4524.6,23.9801016]
[1759730086680,0.002,4524.7,4524.6,53.9801016]
[1759730091008,0.002,4524.7,4524.6,53.5438016]
[1759730091574,0.002,4524.7,4524.6,23.5438016]
[1759730091884,0.002,4524.7,4524.6,53.5438016]
[1759730092223,0.002,4524.7,4524.6,54.72420733]
[1759730093200,0.002,4524.7,4524.6,53.5438016]
[1759730094708,0.002,4524.7,4524.6,50.4448016]
[1759730095807,0.002,4524.7,4524.6,53.5438016]
[1759730095997,0.002,4524.7,4524.6,52.2368016]
[1759730096921,0.002,4524.7,4524.6,52.2758016]
[1759730097088,0.002,4524.7,4524.6,48.1998016]
[1759730097602,0.002,4524.7,4524.6,43.0618016]
[1759730097800,0.002,4524.7,4524.6,53.5438016]
[1759730098403,0.002,4524.7,4524.6,49.5338016]
[1759730098586,0.002,4524.7,4524.6,36.3548016]
[1759730098787,0.002,4524.7,4524.6,49.0578016]
[1759730099193,0.002,4524.7,4524.6,48.63842234]
[1759730099414,0.002,4524.7,4524.6,46.61042234]
[1759730099710,0.002,4524.7,4524.6,51.30842234]
[1759730099915,0.002,4524.7,4524.6,44.54142234]
[1759730100707,0.002,4524.7,4524.6,55.56272234]
[1759730101284,0.002,4524.7,4524.6,55.8285729]
[1759730101613,0.002,4524.7,4524.6,54.35635216]
[1759730109812,0.002,4525.1,4525.0,2.20994475]
[1759730110013,0.002,4525.1,4525.0,39.406936]
[1759730110213,0.002,4525.1,4525.0,39.84573656]
[1759730110414,0.002,4525.1,4525.0,54.43411394]
[1759730121743,0.002,4525.2,4525.1,4.60989591]
[1759730122106,0.002,4526.1,4525.5,2.20970058]
[1759730122226,0.002,4526.1,4525.5,37.43590058]
[1759730122430,0.002,4526.1,4525.5,52.50720058]
[1759730123051,0.002,4526.1,4525.5,52.59556234]
[1759730126962,0.002,4526.1,4525.6,2.4]
[1759730127165,0.002,4526.1,4526.0,6.18699077]
[1759730127373,0.002,4526.1,4526.0,40.96188258]
[1759730128238,0.002,4526.1,4526.0,41.62456944]
[1759730134381,0.4603,4526.1,4526.0,36.80871297]
[1759730134557,0.4603,4526.1,4526.0,30.0]
[1759730134757,0.4603,4526.1,4526.0,2.20945647]
[1759730134971,0.4603,4526.1,4526.0,32.20945647]
[1759730138466,0.4603,4526.1,4526.0,34.70445647]
[1759730138900,0.002,4526.1,4526.0,49.66475647]
[1759730139076,0.002,4526.1,4526.0,52.09909884]
[1759730140101,0.002,4526.1,4526.0,53.67663314]
[1759730142475,0.002,4526.1,4526.0,52.09909884]
[1759730143001,0.002,4526.1,4526.0,22.09909884]
[1759730143501,0.002,4526.1,4526.0,52.09909884]
[1759730144402,0.002,4526.1,4526.0,52.20949884]
[1759730145712,0.002,4526.1,4526.0,52.65919884]
[1759730146090,0.002,4526.1,4526.0,52.20949884]
[1759730147091,0.002,4526.1,4526.0,22.20949884]
[1759730147718,0.002,4526.1,4526.0,51.94364828]
[1759730148096,0.002,4526.1,4526.0,21.94364828]
[1759730148488,0.002,4526.1,4526.0,51.94364828]
[1759730149115,0.002,4526.1,4526.0,52.39334828]
[1759730149900,0.002,4526.1,4526.0,51.94364828]
[1759730151731,0.002,4526.1,4526.0,52.20949884]
[1759730151919,0.002,4526.1,4526.0,52.65919884]
[1759730152645,0.002,4526.1,4526.0,55.05919884]
[1759730154939,0.002,4526.1,4526.0,54.79334828]
[1759730155912,0.002,4526.1,4526.0,54.34364828]
[1759730161116,0.002,4526.1,4526.0,51.84864828]
[1759730161312,0.002,4526.1,4526.0,54.34364828]
[1759730163423,0.002,4526.1,4526.0,51.84864828]
[1759730163622,0.002,4526.1,4526.0,54.34364828]
[1759730164324,0.002,4526.1,4526.0,24.34364828]
[1759730164735,0.002,4526.1,4526.0,54.34364828]
[1759730166318,0.002,4526.1,4526.0,54.77544828]
[1759730170651,0.002,4526.1,4526.0,54.34364828]
[1759730177287,0.002,4526.1,4526.0,56.33110841]
[1759730179255,0.002,4526.1,4526.0,53.83610841]
[1759730179586,0.002,4526.1,4526.0,54.34364828]
[1759730179785,0.002,4526.1,4526.0,56.33110841]
[1759730182164,0.00019436,4526.1,4526.0,56.33110841]
[1759730182681,0.00019436,4526.1,4526.0,26.33110841]
[1759730183087,0.00019436,4526.1,4526.0,56.33110841]
[1759730187883,0.00019436,4526.1,4526.0,56.76290841]
[1759730190623,0.00019436,4526.1,4526.0,56.33110841]
[1759730191026,0.00019436,4526.1,4526.0,54.77544828]
[1759730192224,0.002,4526.6,4526.5,2.20921241]
[1759730192520,0.002,4526.6,4526.5,4.70421241]
[1759730192723,0.002,4526.6,4526.5,37.10421241]
[1759730192898,0.462,4526.6,4526.5,37.10421241]
[1759730193098,0.462,4526.6,4526.5,51.60421241]
[1759730193311,0.462,4526.6,4526.5,53.45147405]
[1759730198923,0.462,4526.6,4526.5,23.45147405]
[1759730199418,0.462,4526.6,4526.5,53.45147405]
[1759730201332,0.002,4526.6,4526.5,53.45147405]
[1759730202052,0.4733,4526.6,4526.5,53.45147405]
[1759730203255,0.002,4526.6,4526.5,53.45147405]
[1759730204423,0.002,4526.6,4526.5,23.45147405]
[1759730204955,0.002,4526.6,4526.5,53.45147405]
[1759730206560,0.002,4526.6,4526.5,23.45147405]
[1759730207059,0.002,4526.6,4526.5,53.45147405]
[1759730208733,0.002,4526.6,4526.5,54.15812461]
[1759730208929,0.002,4526.6,4526.5,54.62942461]
[1759730210632,0.002,4526.6,4526.5,54.18862461]
[1759730210833,0.4733,4526.6,4526.5,51.69362461]
[1759730211066,0.4733,4526.6,4526.5,41.2193]
[1759730211363,0.4733,4526.6,4526.5,43.243]
[1759730211533,0.4733,4526.6,4526.5,45.45221241]
[1759730211735,0.4733,4526.6,4526.5,49.395]
[1759730213385,0.4733,4526.6,4526.5,51.60421241]
[1759730217280,0.4733,4526.6,4526.5,49.395]
[1759730217681,0.4733,4526.6,4526.5,46.26021241]
[1759730217859,0.4733,4526.6,4526.5,51.60421241]
[1759730219468,0.4733,4526.6,4526.5,46.14521241]
[1759730219785,0.4733,4526.6,4526.5,21.60421241]
[1759730220203,0.002,4526.6,4526.5,43.255]
[1759730220407,0.4733,4526.6,4526.5,45.46421241]
[1759730220574,0.002,4526.6,4526.5,45.46421241]
[1759730220902,0.002,4526.6,4526.5,51.60421241]
[1759730221279,0.4733,4526.6,4526.5,51.60421241]
[1759730221886,0.4733,4526.6,4526.5,52.2669022]
[1759730222712,0.4733,4526.6,4526.5,50.05768979]
[1759730223110,0.4733,4526.6,4526.5,52.2669022]
[1759730225006,0.002,4526.6,4526.5,52.2669022]
[1759730228006,0.002,4526.6,4526.5,22.2669022]
[1759730228379,0.002,4526.6,4526.5,52.2669022]
[1759730229979,0.4399,4526.6,4526.5,5.30768979]
[1759730230178,0.5503,4526.6,4526.5,3.06268979]
[1759730230797,0.1124,4526.6,4526.5,33.06268979]
[1759730231500,0.5503,4526.6,4526.5,33.06268979]
[1759730234937,0.1124,4526.6,4526.5,35.2719022]
[1759730235115,0.1124,4526.6,4526.5,36.85049808]
[1759730235503,0.5503,4526.6,4526.5,5.39068979]
[1759730235822,0.5503,4526.6,4526.5,3.06268979]
[1759730236892,0.84841809,4526.6,4526.3,1.57859588]
[1759730237086,0.4379,4526.5,4526.1,0.001]
[1759730237313,0.1104,4526.2,4526.1,0.001]
[1759730237815,0.5483,4526.2,4526.1,0.001]
[1759730242714,0.1104,4526.2,4526.1,0.001]
[1759730242919,0.002,4526.6,4526.3,2.20927489]
[1759730243121,0.002,4526.6,4526.5,2.4]
[1759730243522,0.1124,4526.6,4526.4,3.58266856]
[1759730243844,0.1124,4526.6,4526.5,0.46007556]
[1759730245947,0.1124,4526.6,4526.5,32.86007556]
[1759730246750,0.002,4526.6,4526.5,32.86007556]
[1759730249331,0.4399,4526.6,4526.5,11.26207556]
[1759730249723,0.002,4526.6,4526.5,10.56707556]
[1759730251552,0.002,4526.6,4526.5,11.74974412]
[1759730254957,0.4498,4526.6,4526.5,10.56707556]
[1759730255529,2.65896361,4526.6,4526.5,5.65507556]
[1759730256254,0.4498,4526.6,4526.5,5.65507556]
[1759730256747,0.5602,4526.6,4526.5,5.65507556]
[1759730257765,0.1124,4526.6,4526.5,5.65507556]
[1759730258067,0.1124,4526.6,4526.5,6.83774412]
[1759730260364,0.1124,4526.6,4526.5,5.65507556]
[1759730265172,0.26113231,4526.8,4526.6,2.4]
[1759730265468,0.26113231,4526.8,4526.7,1.18398166]
[1759730265891,0.37153231,4526.8,4526.7,1.84675929]
[1759730266259,0.1104,4526.8,4526.7,0.66277763]
[1759730266671,0.1104,4526.8,4526.7,1.84722993]
[1759730266867,0.1104,4526.8,4526.7,5.73198357]
[1759730267169,0.1104,4526.8,4526.7,5.70989243]
[1759730268355,0.1104,4526.8,4526.7,36.50180121]
[1759730270478,0.1104,4526.8,4526.7,51.00180121]
[1759730272979,0.1124,4526.8,4526.7,51.00180121]
[1759730273342,0.1124,4526.8,4526.7,48.35468641]